[Event "Titled Tuesday Blitz December 7 2021"]
[White "Sadykov, Ramil"]
[Black "Shipov, Sergei"]
[WhiteFideId "24113590"]
[BlackFideId "4113624"]
[WhiteElo "2535"]
[BlackElo "2742"]
[Result "0-1"]
[Round "08"]
[TimeControl "180+1"]
[Date "2021.12.07"]
[WhiteClock "0:00:01"]
[BlackClock "0:00:57"]

1. e4 {[%clk 0:03:00]}  e6 {[%clk 0:02:59]} 2. d3 {[%clk 0:02:58]}  d5 {[%clk 0:02:59]} 3. Nd2 {[%clk 0:02:58]}  c5 {[%clk 0:03:00]} 4. Ngf3 {[%clk 0:02:59]}  Nc6 {[%clk 0:03:01]} 5. g3 {[%clk 0:02:59]}  Nf6 {[%clk 0:03:01]} 6. Bg2 {[%clk 0:02:59]}  g6 {[%clk 0:03:02]} 7. O-O {[%clk 0:02:59]}  Bg7 {[%clk 0:03:03]} 8. Re1 {[%clk 0:03:00]}  O-O {[%clk 0:03:02]} 9. Qe2 {[%clk 0:02:59]}  b6 {[%clk 0:03:00]} 10. Nf1 {[%clk 0:02:58]}  Ba6 {[%clk 0:03:00]} 11. e5 {[%clk 0:02:56]}  Nd7 {[%clk 0:03:00]} 12. Bf4 {[%clk 0:02:56]}  b5 {[%clk 0:02:59]} 13. h4 {[%clk 0:02:55]}  b4 {[%clk 0:03:00]} 14. h5 {[%clk 0:02:52]}  Qb6 {[%clk 0:03:00]} 15. h6 {[%clk 0:02:45]}  Bh8 {[%clk 0:02:59]} 16. N1h2 {[%clk 0:02:46]}  c4 {[%clk 0:03:00]} 17. Ng4 {[%clk 0:02:39]}  cxd3 {[%clk 0:02:59]} 18. cxd3 {[%clk 0:02:40]}  Nc5 {[%clk 0:02:59]} 19. Rad1 {[%clk 0:02:34]}  b3 {[%clk 0:02:52]} 20. a3 {[%clk 0:02:26]}  Rac8 {[%clk 0:02:51]} 21. Bg5 {[%clk 0:02:17]}  Nd7 {[%clk 0:02:51]} 22. Qd2 {[%clk 0:01:58]}  Nd4 {[%clk 0:02:47]} 23. Qf4 {[%clk 0:01:57]}  Nxf3+ {[%clk 0:02:43]} 24. Bxf3 {[%clk 0:01:58]}  Rc2 {[%clk 0:02:41]} 25. d4 {[%clk 0:01:49]}  Rxb2 {[%clk 0:02:40]} 26. Nf6+ {[%clk 0:01:45]}  Bxf6 {[%clk 0:02:39]} 27. Bxf6 {[%clk 0:01:45]}  Rc2 {[%clk 0:02:37]} 28. Rb1 {[%clk 0:00:47]}  Rfc8 {[%clk 0:02:26]} 29. Bd1 {[%clk 0:00:38]}  R2c3 {[%clk 0:02:26]} 30. Be7 {[%clk 0:00:34]}  Rd3 {[%clk 0:02:25]} 31. Bc5 {[%clk 0:00:25]}  Qa5 {[%clk 0:02:17]} 32. Bb4 {[%clk 0:00:19]}  Qb6 {[%clk 0:01:52]} 33. Bc5 {[%clk 0:00:19]}  Qb7 {[%clk 0:01:39]} 34. Bb4 {[%clk 0:00:18]}  Rc4 {[%clk 0:01:38]} 35. Bxb3 {[%clk 0:00:15]}  Rcxd4 {[%clk 0:01:35]} 36. Qg5 {[%clk 0:00:15]}  Qc8 {[%clk 0:01:32]} 37. Ba4 {[%clk 0:00:14]}  f6 {[%clk 0:01:15]} 38. exf6 {[%clk 0:00:14]}  Kf7 {[%clk 0:01:13]} 39. Rbc1 {[%clk 0:00:03]}  Rc4 {[%clk 0:01:12]} 40. Rxc4 {[%clk 0:00:04]}  Bxc4 {[%clk 0:01:10]} 41. Qg4 {[%clk 0:00:04]}  Nb6 {[%clk 0:01:10]} 42. Bc2 {[%clk 0:00:02]}  Qc6 {[%clk 0:00:59]} 43. Bxd3 {[%clk 0:00:02]}  Bxd3 {[%clk 0:01:00]} 44. Qf4 {[%clk 0:00:02]}  Nd7 {[%clk 0:00:58]} 45. Qe3 {[%clk 0:00:01]}  Ba6 {[%clk 0:00:57]} 0-1


[Site "https://www.chess.com"]

[Event "Titled Tuesday Blitz December 7 2021"]
[White "Samadov, Read"]
[Black "Svane, Rasmus"]
[WhiteFideId "13417444"]
[BlackFideId "4657101"]
[WhiteElo "2800"]
[BlackElo "2939"]
[Result "0-1"]
[Round "08"]
[TimeControl "180+1"]
[Date "2021.12.07"]
[WhiteClock "0:00:02"]
[BlackClock "0:00:13"]

1. d4 {[%clk 0:03:00]}  Nf6 {[%clk 0:02:59]} 2. c4 {[%clk 0:03:01]}  e6 {[%clk 0:03:00]} 3. Nf3 {[%clk 0:03:01]}  d5 {[%clk 0:03:00]} 4. g3 {[%clk 0:03:00]}  Bb4+ {[%clk 0:02:55]} 5. Bd2 {[%clk 0:02:49]}  a5 {[%clk 0:02:55]} 6. Bg2 {[%clk 0:02:48]}  O-O {[%clk 0:02:55]} 7. Qc2 {[%clk 0:02:44]}  Be7 {[%clk 0:02:53]} 8. O-O {[%clk 0:02:44]}  c6 {[%clk 0:02:53]} 9. b3 {[%clk 0:02:42]}  b5 {[%clk 0:02:51]} 10. Ne5 {[%clk 0:02:30]}  bxc4 {[%clk 0:02:44]} 11. bxc4 {[%clk 0:02:29]}  Nfd7 {[%clk 0:02:44]} 12. Nd3 {[%clk 0:02:19]}  Ba6 {[%clk 0:02:43]} 13. c5 {[%clk 0:02:15]}  e5 {[%clk 0:01:45]} 14. dxe5 {[%clk 0:02:06]}  Bxd3 {[%clk 0:01:39]} 15. exd3 {[%clk 0:02:06]}  Nxe5 {[%clk 0:01:39]} 16. Nc3 {[%clk 0:01:53]}  Nbd7 {[%clk 0:01:36]} 17. Na4 {[%clk 0:01:47]}  Re8 {[%clk 0:01:25]} 18. Rab1 {[%clk 0:01:41]}  Rb8 {[%clk 0:01:09]} 19. Rxb8 {[%clk 0:01:36]}  Qxb8 {[%clk 0:01:10]} 20. Rb1 {[%clk 0:01:28]}  Qa7 {[%clk 0:01:09]} 21. Be3 {[%clk 0:01:04]}  Ng4 {[%clk 0:01:09]} 22. Bd4 {[%clk 0:01:03]}  Bf6 {[%clk 0:01:05]} 23. Bxf6 {[%clk 0:01:01]}  Ngxf6 {[%clk 0:01:04]} 24. Nb6 {[%clk 0:00:48]}  Ne5 {[%clk 0:01:00]} 25. d4 {[%clk 0:00:44]}  Ng6 {[%clk 0:00:53]} 26. Qf5 {[%clk 0:00:39]}  h6 {[%clk 0:00:48]} 27. h4 {[%clk 0:00:38]}  Nf8 {[%clk 0:00:45]} 28. Qd3 {[%clk 0:00:23]}  Qe7 {[%clk 0:00:44]} 29. Bf3 {[%clk 0:00:21]}  g6 {[%clk 0:00:38]} 30. Kg2 {[%clk 0:00:21]}  Kg7 {[%clk 0:00:39]} 31. Rb2 {[%clk 0:00:21]}  Ne6 {[%clk 0:00:35]} 32. Re2 {[%clk 0:00:21]}  Qd8 {[%clk 0:00:34]} 33. Qd2 {[%clk 0:00:20]}  h5 {[%clk 0:00:34]} 34. a4 {[%clk 0:00:18]}  Nh7 {[%clk 0:00:33]} 35. Qxa5 {[%clk 0:00:15]}  Qf6 {[%clk 0:00:24]} 36. Qc3 {[%clk 0:00:15]}  g5 {[%clk 0:00:20]} 37. hxg5 {[%clk 0:00:13]}  Nhxg5 {[%clk 0:00:20]} 38. Re5 {[%clk 0:00:09]}  h4 {[%clk 0:00:11]} 39. Bg4 {[%clk 0:00:09]}  h3+ {[%clk 0:00:11]} 40. Bxh3 {[%clk 0:00:05]}  Nxh3 {[%clk 0:00:12]} 41. Kxh3 {[%clk 0:00:05]}  Qxf2 {[%clk 0:00:12]} 42. Qe3 {[%clk 0:00:03]}  Rh8+ {[%clk 0:00:12]} 43. Kg4 {[%clk 0:00:04]}  f5+ {[%clk 0:00:13]} 44. Rxf5 {[%clk 0:00:02]}  Qxe3 {[%clk 0:00:13]} 0-1


[Site "https://www.chess.com"]

[Event "Titled Tuesday Blitz December 7 2021"]
[White "Sanchez, Robert"]
[Black "Ianov, Viktor"]
[WhiteFideId "2034360"]
[BlackFideId "14102730"]
[WhiteElo "2360"]
[BlackElo "2567"]
[Result "0-1"]
[Round "08"]
[TimeControl "180+1"]
[Date "2021.12.07"]
[WhiteClock "0:00:33"]
[BlackClock "0:00:59"]

1. e4 {[%clk 0:03:00]}  d6 {[%clk 0:02:59]} 2. d4 {[%clk 0:03:00]}  Nf6 {[%clk 0:02:59]} 3. Nc3 {[%clk 0:03:01]}  c6 {[%clk 0:02:59]} 4. Be3 {[%clk 0:03:01]}  Qa5 {[%clk 0:02:57]} 5. f3 {[%clk 0:03:00]}  Nbd7 {[%clk 0:02:57]} 6. Bd3 {[%clk 0:03:00]}  g6 {[%clk 0:02:56]} 7. Ne2 {[%clk 0:03:01]}  Bg7 {[%clk 0:02:56]} 8. O-O {[%clk 0:03:00]}  O-O {[%clk 0:02:56]} 9. a3 {[%clk 0:03:01]}  e5 {[%clk 0:02:51]} 10. Qd2 {[%clk 0:03:01]}  Re8 {[%clk 0:02:50]} 11. Kh1 {[%clk 0:02:55]}  Qc7 {[%clk 0:02:45]} 12. Bc4 {[%clk 0:02:49]}  b5 {[%clk 0:02:43]} 13. Bb3 {[%clk 0:02:45]}  a6 {[%clk 0:02:43]} 14. f4 {[%clk 0:02:42]}  Bb7 {[%clk 0:02:41]} 15. fxe5 {[%clk 0:02:42]}  dxe5 {[%clk 0:02:40]} 16. Bg5 {[%clk 0:02:31]}  exd4 {[%clk 0:02:36]} 17. Nxd4 {[%clk 0:02:21]}  c5 {[%clk 0:02:35]} 18. Nf3 {[%clk 0:02:08]}  c4 {[%clk 0:02:34]} 19. Ba2 {[%clk 0:02:08]}  Nxe4 {[%clk 0:02:30]} 20. Nxe4 {[%clk 0:02:08]}  Bxe4 {[%clk 0:02:29]} 21. Rad1 {[%clk 0:02:07]}  Nc5 {[%clk 0:02:27]} 22. b3 {[%clk 0:02:02]}  c3 {[%clk 0:02:20]} 23. Qf2 {[%clk 0:01:55]}  h6 {[%clk 0:02:11]} 24. Bh4 {[%clk 0:01:49]}  g5 {[%clk 0:02:03]} 25. Bg3 {[%clk 0:01:49]}  Qb7 {[%clk 0:02:01]} 26. b4 {[%clk 0:01:48]}  Ne6 {[%clk 0:01:49]} 27. Ne5 {[%clk 0:01:40]}  Re7 {[%clk 0:01:43]} 28. Nxf7 {[%clk 0:01:32]}  Rf8 {[%clk 0:01:38]} 29. Rd8 {[%clk 0:01:27]}  Nxd8 {[%clk 0:01:22]} 30. Nxd8+ {[%clk 0:01:26]}  Kh7 {[%clk 0:01:18]} 31. Nxb7 {[%clk 0:01:16]}  Rxf2 {[%clk 0:01:16]} 32. Bxf2 {[%clk 0:01:04]}  Rxb7 {[%clk 0:01:14]} 33. Bc5 {[%clk 0:00:59]}  Bxc2 {[%clk 0:01:09]} 34. Bd5 {[%clk 0:00:41]}  Rd7 {[%clk 0:01:08]} 35. Be6 {[%clk 0:00:40]}  Rd2 {[%clk 0:01:05]} 36. h3 {[%clk 0:00:37]}  Be4 {[%clk 0:01:05]} 37. Rf7 {[%clk 0:00:33]}  c2 {[%clk 0:00:59]} 0-1


[Site "https://www.chess.com"]

[Event "Titled Tuesday Blitz December 7 2021"]
[White "Santos Flores, Alberto"]
[Black "Ezat, Mohamed"]
[WhiteFideId "3601234"]
[BlackFideId "10600906"]
[WhiteElo "2293"]
[BlackElo "2400"]
[Result "1-0"]
[Round "08"]
[TimeControl "180+1"]
[Date "2021.12.07"]
[WhiteClock "0:01:19"]
[BlackClock "0:01:48"]

1. e4 {[%clk 0:03:00]}  c6 {[%clk 0:02:59]} 2. d4 {[%clk 0:02:59]}  d5 {[%clk 0:02:58]} 3. Nc3 {[%clk 0:02:59]}  b5 {[%clk 0:02:57]} 4. e5 {[%clk 0:02:51]}  a6 {[%clk 0:02:53]} 5. Bd3 {[%clk 0:02:50]}  Nd7 {[%clk 0:02:45]} 6. Nce2 {[%clk 0:02:45]}  Nb6 {[%clk 0:02:44]} 7. h3 {[%clk 0:02:40]}  e6 {[%clk 0:02:42]} 8. Nf3 {[%clk 0:02:38]}  c5 {[%clk 0:02:42]} 9. c3 {[%clk 0:02:37]}  Ne7 {[%clk 0:02:40]} 10. Be3 {[%clk 0:02:34]}  Nc6 {[%clk 0:02:36]} 11. Nf4 {[%clk 0:02:28]}  Nc4 {[%clk 0:02:35]} 12. Bc1 {[%clk 0:02:26]}  cxd4 {[%clk 0:02:33]} 13. cxd4 {[%clk 0:02:25]}  Bb4+ {[%clk 0:02:30]} 14. Kf1 {[%clk 0:02:25]}  O-O {[%clk 0:02:27]} 15. h4 {[%clk 0:02:21]}  f5 {[%clk 0:02:20]} 16. b3 {[%clk 0:02:09]}  Nb6 {[%clk 0:02:18]} 17. Be3 {[%clk 0:02:00]}  Bd7 {[%clk 0:02:16]} 18. Rc1 {[%clk 0:01:57]}  Rc8 {[%clk 0:02:07]} 19. Ng5 {[%clk 0:01:56]}  Qe7 {[%clk 0:01:49]} 20. Rh3 {[%clk 0:01:46]}  Ba3 {[%clk 0:01:48]} 21. Rc2 {[%clk 0:01:19]} 1-0


[Site "https://www.chess.com"]

[Event "Titled Tuesday Blitz December 7 2021"]
[White "Saraci, Nderim"]
[Black "Shyaamnikhil P"]
[WhiteFideId "6351921"]
[BlackFideId "5024218"]
[WhiteElo "2789"]
[BlackElo "2661"]
[Result "0-1"]
[Round "08"]
[TimeControl "180+1"]
[Date "2021.12.07"]
[WhiteClock "0:00:03"]
[BlackClock "0:01:25"]

1. Nf3 {[%clk 0:02:31]}  Nf6 {[%clk 0:02:58]} 2. g3 {[%clk 0:02:31]}  c5 {[%clk 0:02:57]} 3. Bg2 {[%clk 0:02:32]}  Nc6 {[%clk 0:02:57]} 4. O-O {[%clk 0:02:32]}  d5 {[%clk 0:02:56]} 5. d4 {[%clk 0:02:33]}  e6 {[%clk 0:02:56]} 6. c4 {[%clk 0:02:32]}  dxc4 {[%clk 0:02:57]} 7. Qa4 {[%clk 0:02:32]}  Bd7 {[%clk 0:02:57]} 8. Qxc4 {[%clk 0:02:29]}  cxd4 {[%clk 0:02:57]} 9. Nxd4 {[%clk 0:02:29]}  Rc8 {[%clk 0:02:57]} 10. Nxc6 {[%clk 0:02:27]}  Bxc6 {[%clk 0:02:57]} 11. Bxc6+ {[%clk 0:02:26]}  Rxc6 {[%clk 0:02:58]} 12. Qb5 {[%clk 0:02:26]}  Qc8 {[%clk 0:02:54]} 13. Nc3 {[%clk 0:02:22]}  a6 {[%clk 0:02:54]} 14. Qb3 {[%clk 0:02:18]}  Be7 {[%clk 0:02:48]} 15. a4 {[%clk 0:02:17]}  O-O {[%clk 0:02:48]} 16. Be3 {[%clk 0:02:17]}  Rc4 {[%clk 0:02:44]} 17. Rfd1 {[%clk 0:02:12]}  Rb4 {[%clk 0:02:43]} 18. Qc2 {[%clk 0:02:04]}  Nd5 {[%clk 0:02:40]} 19. Bd4 {[%clk 0:02:04]}  Bf6 {[%clk 0:02:37]} 20. Bxf6 {[%clk 0:01:40]}  Nxf6 {[%clk 0:02:38]} 21. Qd2 {[%clk 0:01:38]}  Rc4 {[%clk 0:02:33]} 22. Rac1 {[%clk 0:01:36]}  h5 {[%clk 0:02:32]} 23. h4 {[%clk 0:01:35]}  Qc6 {[%clk 0:02:27]} 24. b3 {[%clk 0:01:30]}  Rc5 {[%clk 0:02:27]} 25. Na2 {[%clk 0:01:29]}  Ne4 {[%clk 0:02:24]} 26. Qe3 {[%clk 0:01:29]}  f5 {[%clk 0:02:14]} 27. Rxc5 {[%clk 0:01:27]}  Qxc5 {[%clk 0:02:12]} 28. Qxc5 {[%clk 0:01:08]}  Nxc5 {[%clk 0:02:13]} 29. Nc1 {[%clk 0:01:07]}  a5 {[%clk 0:02:12]} 30. e3 {[%clk 0:01:05]}  Rc8 {[%clk 0:02:10]} 31. Kf1 {[%clk 0:01:02]}  Kf7 {[%clk 0:02:08]} 32. Rd4 {[%clk 0:00:55]}  Ke7 {[%clk 0:02:05]} 33. Rc4 {[%clk 0:00:51]}  Rc6 {[%clk 0:02:05]} 34. Ke1 {[%clk 0:00:43]}  e5 {[%clk 0:02:00]} 35. Kd1 {[%clk 0:00:35]}  Kd6 {[%clk 0:01:57]} 36. f3 {[%clk 0:00:34]}  b6 {[%clk 0:01:49]} 37. Rc2 {[%clk 0:00:13]}  Ke7 {[%clk 0:01:45]} 38. Rd2 {[%clk 0:00:14]}  Rg6 {[%clk 0:01:44]} 39. Rd5 {[%clk 0:00:11]}  Ke6 {[%clk 0:01:42]} 40. Rd8 {[%clk 0:00:12]}  Rxg3 {[%clk 0:01:41]} 41. Re8+ {[%clk 0:00:09]}  Kd6 {[%clk 0:01:36]} 42. Rg8 {[%clk 0:00:09]}  Rxf3 {[%clk 0:01:34]} 43. Rxg7 {[%clk 0:00:09]}  Rxe3 {[%clk 0:01:35]} 44. Rg5 {[%clk 0:00:08]}  f4 {[%clk 0:01:32]} 45. Rxh5 {[%clk 0:00:08]}  Rh3 {[%clk 0:01:30]} 46. Rh6+ {[%clk 0:00:08]}  Kd5 {[%clk 0:01:30]} 47. h5 {[%clk 0:00:06]}  f3 {[%clk 0:01:30]} 48. Rf6 {[%clk 0:00:05]}  Rh1+ {[%clk 0:01:29]} 49. Kc2 {[%clk 0:00:04]}  Rh2+ {[%clk 0:01:28]} 50. Kd1 {[%clk 0:00:04]}  e4 {[%clk 0:01:28]} 51. h6 {[%clk 0:00:03]}  Ke5 {[%clk 0:01:25]} 52. Rxb6 {[%clk 0:00:03]}  e3 {[%clk 0:01:24]} 53. Rb5 {[%clk 0:00:03]}  Kd4 {[%clk 0:01:25]} 0-1


[Site "https://www.chess.com"]

[Event "Titled Tuesday Blitz December 7 2021"]
[White "Shahade, Gregory"]
[Black "Sinitsina, Anastassia"]
[WhiteFideId "2009064"]
[BlackFideId "4504640"]
[WhiteElo "2668"]
[BlackElo "2503"]
[Result "0-1"]
[Round "08"]
[TimeControl "180+1"]
[Date "2021.12.07"]
[WhiteClock "0:00:15"]
[BlackClock "0:00:52"]

1. e4 {[%clk 0:03:00]}  e5 {[%clk 0:02:59]} 2. Nf3 {[%clk 0:03:01]}  Nc6 {[%clk 0:02:59]} 3. Bb5 {[%clk 0:03:01]}  a6 {[%clk 0:02:59]} 4. Ba4 {[%clk 0:03:01]}  Nf6 {[%clk 0:02:59]} 5. O-O {[%clk 0:03:01]}  Nxe4 {[%clk 0:02:59]} 6. d4 {[%clk 0:03:00]}  b5 {[%clk 0:02:59]} 7. Bb3 {[%clk 0:03:00]}  d5 {[%clk 0:02:59]} 8. dxe5 {[%clk 0:03:00]}  Be6 {[%clk 0:03:00]} 9. Nbd2 {[%clk 0:02:59]}  Nc5 {[%clk 0:02:59]} 10. c3 {[%clk 0:02:59]}  d4 {[%clk 0:02:59]} 11. Bxe6 {[%clk 0:02:44]}  Nxe6 {[%clk 0:02:58]} 12. cxd4 {[%clk 0:02:44]}  Ncxd4 {[%clk 0:02:57]} 13. a4 {[%clk 0:02:45]}  Be7 {[%clk 0:02:48]} 14. axb5 {[%clk 0:02:35]}  axb5 {[%clk 0:02:47]} 15. Rxa8 {[%clk 0:02:34]}  Qxa8 {[%clk 0:02:48]} 16. Nxd4 {[%clk 0:02:35]}  Nxd4 {[%clk 0:02:47]} 17. Qg4 {[%clk 0:02:29]}  Ne6 {[%clk 0:02:42]} 18. Ne4 {[%clk 0:02:27]}  Qd5 {[%clk 0:02:38]} 19. Nc3 {[%clk 0:01:53]}  Qxe5 {[%clk 0:02:33]} 20. Bd2 {[%clk 0:01:54]}  O-O {[%clk 0:02:28]} 21. Re1 {[%clk 0:01:54]}  Qd6 {[%clk 0:02:22]} 22. Ne4 {[%clk 0:01:45]}  Qd3 {[%clk 0:02:15]} 23. Qf5 {[%clk 0:00:56]}  Rd8 {[%clk 0:02:06]} 24. Bc3 {[%clk 0:00:46]}  Qd5 {[%clk 0:01:51]} 25. Qf3 {[%clk 0:00:41]}  b4 {[%clk 0:01:47]} 26. Bxg7 {[%clk 0:00:26]}  Nxg7 {[%clk 0:01:39]} 27. Nf6+ {[%clk 0:00:21]}  Bxf6 {[%clk 0:01:38]} 28. Qxf6 {[%clk 0:00:22]}  Qd6 {[%clk 0:01:28]} 29. Qg5 {[%clk 0:00:20]}  Qf8 {[%clk 0:01:09]} 30. h4 {[%clk 0:00:19]}  Rd6 {[%clk 0:01:06]} 31. h5 {[%clk 0:00:17]}  Qd8 {[%clk 0:01:03]} 32. Qg4 {[%clk 0:00:16]}  Rd4 {[%clk 0:00:58]} 33. Qg3 {[%clk 0:00:17]}  Rd1 {[%clk 0:00:55]} 34. Rxd1 {[%clk 0:00:14]}  Qxd1+ {[%clk 0:00:55]} 35. Kh2 {[%clk 0:00:15]}  Qxh5+ {[%clk 0:00:55]} 36. Kg1 {[%clk 0:00:16]}  Qd1+ {[%clk 0:00:55]} 37. Kh2 {[%clk 0:00:16]}  Qd6 {[%clk 0:00:55]} 38. f4 {[%clk 0:00:16]}  Kf8 {[%clk 0:00:54]} 39. Qg5 {[%clk 0:00:15]}  Ne6 {[%clk 0:00:52]} 40. Qf6 {[%clk 0:00:15]} 0-1


[Site "https://www.chess.com"]

[Event "Titled Tuesday Blitz December 7 2021"]
[White "Stoyanov, Tsvetan"]
[Black "Diaz Camallonga, Carles"]
[WhiteFideId "2917173"]
[BlackFideId "22235256"]
[WhiteElo "2627"]
[BlackElo "2742"]
[Result "1/2-1/2"]
[Round "08"]
[TimeControl "180+1"]
[Date "2021.12.07"]
[WhiteClock "0:00:07"]
[BlackClock "0:00:14"]

1. e4 {[%clk 0:03:00]}  e6 {[%clk 0:02:58]} 2. d4 {[%clk 0:02:59]}  d5 {[%clk 0:02:58]} 3. Nd2 {[%clk 0:02:59]}  c5 {[%clk 0:02:58]} 4. exd5 {[%clk 0:02:59]}  exd5 {[%clk 0:02:56]} 5. Ngf3 {[%clk 0:02:58]}  a6 {[%clk 0:02:54]} 6. dxc5 {[%clk 0:02:56]}  Bxc5 {[%clk 0:02:54]} 7. Nb3 {[%clk 0:02:56]}  Bb6 {[%clk 0:02:53]} 8. Bd3 {[%clk 0:02:54]}  Nf6 {[%clk 0:02:49]} 9. O-O {[%clk 0:02:54]}  O-O {[%clk 0:02:49]} 10. h3 {[%clk 0:02:49]}  h6 {[%clk 0:02:47]} 11. c3 {[%clk 0:02:49]}  Nc6 {[%clk 0:02:47]} 12. Bc2 {[%clk 0:02:48]}  Re8 {[%clk 0:02:44]} 13. Nbd4 {[%clk 0:02:40]}  Ne4 {[%clk 0:02:40]} 14. Be3 {[%clk 0:02:39]}  Bc7 {[%clk 0:02:39]} 15. Re1 {[%clk 0:02:32]}  Qd6 {[%clk 0:02:31]} 16. Ne2 {[%clk 0:02:27]}  Bf5 {[%clk 0:02:24]} 17. Bf4 {[%clk 0:02:24]}  Qc5 {[%clk 0:02:06]} 18. Bxe4 {[%clk 0:01:21]}  dxe4 {[%clk 0:02:01]} 19. Nfd4 {[%clk 0:01:21]}  Bxf4 {[%clk 0:01:51]} 20. Nxf4 {[%clk 0:01:20]}  Rad8 {[%clk 0:01:40]} 21. Qb3 {[%clk 0:01:01]}  Nxd4 {[%clk 0:01:24]} 22. cxd4 {[%clk 0:01:02]}  Qxd4 {[%clk 0:01:20]} 23. Qxb7 {[%clk 0:01:00]}  e3 {[%clk 0:01:15]} 24. Qf3 {[%clk 0:00:54]}  exf2+ {[%clk 0:01:14]} 25. Qxf2 {[%clk 0:00:53]}  Qxf2+ {[%clk 0:01:10]} 26. Kxf2 {[%clk 0:00:53]}  Rd2+ {[%clk 0:01:11]} 27. Kf3 {[%clk 0:00:49]}  Rxe1 {[%clk 0:01:10]} 28. Rxe1 {[%clk 0:00:50]}  Rxb2 {[%clk 0:01:10]} 29. Re8+ {[%clk 0:00:47]}  Kh7 {[%clk 0:01:10]} 30. Re7 {[%clk 0:00:47]}  Bg6 {[%clk 0:01:03]} 31. a3 {[%clk 0:00:41]}  Ra2 {[%clk 0:00:58]} 32. Re3 {[%clk 0:00:39]}  Bf5 {[%clk 0:00:53]} 33. g4 {[%clk 0:00:37]}  Bd7 {[%clk 0:00:52]} 34. Kg3 {[%clk 0:00:34]}  Bc6 {[%clk 0:00:50]} 35. Rc3 {[%clk 0:00:33]}  Bb5 {[%clk 0:00:48]} 36. Nd5 {[%clk 0:00:30]}  Rd2 {[%clk 0:00:43]} 37. Nc7 {[%clk 0:00:27]}  Rd3+ {[%clk 0:00:32]} 38. Rxd3 {[%clk 0:00:27]}  Bxd3 {[%clk 0:00:33]} 39. Kf4 {[%clk 0:00:25]}  g5+ {[%clk 0:00:31]} 40. Kg3 {[%clk 0:00:21]}  Kg7 {[%clk 0:00:30]} 41. h4 {[%clk 0:00:18]}  Kf6 {[%clk 0:00:30]} 42. hxg5+ {[%clk 0:00:18]}  hxg5 {[%clk 0:00:30]} 43. Kf3 {[%clk 0:00:16]}  Ke5 {[%clk 0:00:30]} 44. Ke3 {[%clk 0:00:17]}  Bc4 {[%clk 0:00:29]} 45. Ne8 {[%clk 0:00:12]}  Be6 {[%clk 0:00:29]} 46. Kf3 {[%clk 0:00:12]}  Kd4 {[%clk 0:00:28]} 47. Nf6 {[%clk 0:00:12]}  Kc3 {[%clk 0:00:19]} 48. Ne4+ {[%clk 0:00:12]}  Kb3 {[%clk 0:00:19]} 49. Nc5+ {[%clk 0:00:11]}  Kxa3 {[%clk 0:00:18]} 50. Nxa6 {[%clk 0:00:12]}  Bd5+ {[%clk 0:00:16]} 51. Ke3 {[%clk 0:00:11]}  Kb3 {[%clk 0:00:17]} 52. Nc7 {[%clk 0:00:11]}  Bc6 {[%clk 0:00:15]} 53. Kd4 {[%clk 0:00:08]}  Bd7 {[%clk 0:00:15]} 54. Ke5 {[%clk 0:00:07]}  Bxg4 {[%clk 0:00:15]} 55. Kf6 {[%clk 0:00:08]}  Bd7 {[%clk 0:00:14]} 56. Kxg5 {[%clk 0:00:08]}  f5 {[%clk 0:00:14]} 57. Nd5 {[%clk 0:00:07]}  Kc4 {[%clk 0:00:14]} 58. Ne7 {[%clk 0:00:07]}  Kd4 {[%clk 0:00:14]} 59. Nxf5+ {[%clk 0:00:07]} 1/2-1/2


[Site "https://www.chess.com"]

[Event "Titled Tuesday Blitz December 7 2021"]
[White "Sviridov, Valery"]
[Black "Koutlas, Nikolaos"]
[WhiteFideId "4120680"]
[BlackFideId "25827138"]
[WhiteElo "2989"]
[BlackElo "2563"]
[Result "1-0"]
[Round "08"]
[TimeControl "180+1"]
[Date "2021.12.07"]
[WhiteClock "0:02:21"]
[BlackClock "0:00:28"]

1. Nf3 {[%clk 0:03:00]}  Nf6 {[%clk 0:02:57]} 2. g3 {[%clk 0:03:01]}  g6 {[%clk 0:02:56]} 3. Bg2 {[%clk 0:03:01]}  Bg7 {[%clk 0:02:57]} 4. O-O {[%clk 0:03:01]}  O-O {[%clk 0:02:58]} 5. c4 {[%clk 0:03:02]}  d6 {[%clk 0:02:59]} 6. Nc3 {[%clk 0:03:01]}  Nc6 {[%clk 0:02:59]} 7. d4 {[%clk 0:03:01]}  Bg4 {[%clk 0:02:59]} 8. d5 {[%clk 0:03:01]}  Na5 {[%clk 0:02:57]} 9. Nd2 {[%clk 0:03:02]}  c5 {[%clk 0:02:57]} 10. Qc2 {[%clk 0:03:01]}  a6 {[%clk 0:02:57]} 11. h3 {[%clk 0:03:01]}  Bd7 {[%clk 0:02:56]} 12. b3 {[%clk 0:03:01]}  b5 {[%clk 0:02:56]} 13. Bb2 {[%clk 0:03:02]}  Rb8 {[%clk 0:02:57]} 14. Rab1 {[%clk 0:03:01]}  e5 {[%clk 0:02:54]} 15. dxe6 {[%clk 0:03:01]}  Bxe6 {[%clk 0:02:54]} 16. cxb5 {[%clk 0:03:01]}  axb5 {[%clk 0:02:52]} 17. Rfd1 {[%clk 0:03:02]}  Qb6 {[%clk 0:02:31]} 18. Nce4 {[%clk 0:03:00]}  Nxe4 {[%clk 0:02:30]} 19. Nxe4 {[%clk 0:03:01]}  Rbd8 {[%clk 0:02:24]} 20. Bxg7 {[%clk 0:02:58]}  Kxg7 {[%clk 0:02:24]} 21. b4 {[%clk 0:02:43]}  Nc4 {[%clk 0:02:19]} 22. bxc5 {[%clk 0:02:28]}  dxc5 {[%clk 0:02:19]} 23. Qc3+ {[%clk 0:02:28]}  Kh6 {[%clk 0:02:11]} 24. Rxd8 {[%clk 0:02:23]}  Rxd8 {[%clk 0:02:09]} 25. g4 {[%clk 0:02:23]}  Rd4 {[%clk 0:00:48]} 26. g5+ {[%clk 0:02:22]}  Kg7 {[%clk 0:00:47]} 27. e3 {[%clk 0:02:22]}  b4 {[%clk 0:00:47]} 28. Qa1 {[%clk 0:02:22]}  Kf8 {[%clk 0:00:27]} 29. exd4 {[%clk 0:02:22]}  cxd4 {[%clk 0:00:28]} 30. Rd1 {[%clk 0:02:21]} 1-0


[Site "https://www.chess.com"]